{"text_format":"3","workbook":"xlsx","n_sheets":2,"sheets":["任务一栏表","项目一览表"],"not_rendered":{"defined_names":2},"read":"whole","date_system":"1900"}

{"sheet":"任务一栏表","index":0,"n_rows":35,"n_cols":8,"rows_kept":35,"merged":[[0,0,0,7],[1,0,2,0],[1,1,2,1],[1,2,2,2],[1,3,2,3],[1,4,1,7]]}
["西安电力高等专科学校承担高等职业教育创新发展行动计划（2015-2018年）任务一栏表"]
["编号","任务名称","责任部门","责任人","经费（万元）"]
[{"$nulls":4},"2016年","2017年","2018年","合计"]
["RW-1","加强与信誉良好的国际组织、跨国企业以及职业教育发达国家开展交流与合作","教务部","苑蕾",3,37,37,77]
["RW-2","学习和引进国际先进成熟适用的职业标准、专业课程、教材体系和数字化教育资源","教务部","苑蕾",5.5,30.5,30,66]
["RW-3","选择类型相同、专业相近的国（境）外高水平院校联合开发课程，共建专业、实验室或实训基地，建立教师交流、学生交换、学分互认等合作关系","教务部","苑蕾",2,48,48,98]
["RW-5","举办高水平中外合作办学项目和机构","教务部","苑蕾",1,27,27,55]
["RW-6","完善以老带新的青年教师培养机制；建立教师轮训制度；专业教师每五年企业实践时间累计不少于6个月","人资部","沈海英",32,32,32,96]
["RW-7","高等职业院校专业骨干教师国家级、省级培训计划","人资部","王杰",5,35,35,75]
["RW-9","支持专科高等职业院校按照有关规定自主聘请兼职教师；加强兼职教师的职业教育教学规律与教学方法培训；支持兼职教师或合作企业牵头申报教学研究项目、组织实施教学改革；把指导学生顶岗实习的企业技术人员纳入兼职教师管理范围。核算教师总数时，兼职教师数按每学年授课160学时为1名教师计算。","人资部","王杰",20,15,20,55]
["RW-11","推动落实《职业院校数字校园建设规范》，建设高等职业教育人才培养工作状态数据管理系统","科技室","成刚",361.58,231.18,332.18,924.94]
["RW-12","将信息技术应用能力作为教师评聘考核的重要依据","人资部","王杰",13,17,20,50]
["RW-21","规范落实《教育部关于积极推进高等职业教育考试招生制度改革的指导意见》；研究制订职业院校学生进入高层次学校学习的办法；2016年通过分类考试录取的学生占高等职业院校招生总数的一半左右，2017年成为主渠道；逐步提高专科高等职业院校招收中等职业学校毕业生的比例和本科高等学校招收职业院校毕业生的比例","学管部","常斌",12,32,14,58]
["RW-28","落实《教育部人力资源社会保障部关于推进职业院校服务经济转型升级面向行业企业开展职工继续教育的意见》","培管部","冯涛",29,34,34,97]
["RW-37","建立产业结构调整驱动专业设置与改革、产业技术进步驱动课程改革的机制","教务部","杨浩",31,29,29,89]
["RW-39","优先保证新一代信息技术产业、高档数控机床和机器人、航空航天装备、海洋工程装备及高技术船舶、先进轨道交通装备、节能与新能源汽车、电力装备、农机装备、新材料、生物医药及高性能医疗器械产业相关专业的布局与发展","电力系","王维超",22,33,203,258]
["RW-40","加强现代服务业亟需人才培养，加快满足社会建设和社会管理人才需求","管理系","郭怀德",2.5,15,20,37.5]
["RW-42","促进专业教育与创新创业教育有机融合；利用各种资源建设大学科技园、大学生创业园、创业孵化基地和小微企业创业基地，作为创业教育实践平台","团委","杜卫庆",4,38,58,100]
["RW-43","探索将学生完成的创新实验、论文发表、专利获取、自主创业等成果折算为学分，将学生参与课题研究、项目实验等活动认定为课堂学习；优先支持参与创新创业的学生转入相关专业学习；实施弹性学制，放宽学生修业年限，允许调整学业进程、保留学籍休学创新创业","教务部","焦健",15,13,102,130]
["RW-44","地区、有关部门整合发展财政和社会资金，支持高校学生创新创业活动。高等职业院校优化经费支出结构，多渠道统筹安排资金，支持创新创业教育教学，资助学生创新创业项目","教务部","左红梅",7,45,45,97]
["RW-50","完成高等职业院校章程制定、修订工作","计划室","杨海伏",3,3,4,10]
["RW-51","推动高等职业院校参照《高等学校学术委员会规程》设立学术委员会；一批（不少于20%）专科高等职业院校参照《普通高等学校理事会规程（试行）》设立理事会或董事会机构","计划室","杨海伏",3,3,4,10]
["RW-52","巩固学校、省和国家三级高等职业教育质量年度报告制度，进一步提高年度质量报告的量化程度、可比性和可读性；强化对报告发布情况和撰写质量的监督管理","质管室","印蕴瑞",6,7,30,43]
["RW-53","加强分类指导，以人才培养工作状态数据为基础，开展高职院校教学诊断和改进工作","教务部","杨浩",70,15,15,100]
["RW-56","推动教师分类管理、分类评价的人事管理制度改革；全面推行按岗聘用、竞聘上岗","人资部","郭晨",0,0,0,0]
["RW-57","制订体现高等职业教育特点的教师绩效评价标准； 55岁以下的教授、副教授每学期至少讲授一门课程","人资部","郭晨",0.6,2.2,2.2,5]
["RW-58","加强高等职业教育研究机构和队伍建设，加大投入支持相关研究工作；有条件的高等职业院校建立专门教育研究机构，开展教学研究","科技室","石峰",30,32,32,94]
["RW-59","贯彻落实《高等学校辅导员职业能力标准（暂行）》","学管部","张蕊",26,27,37,90]
["RW-60","健全学生思想政治教育长效机制；高职院校按师生比1:200配备辅导员；心理健康教育全覆盖","党群部","刘燕",82.38,82.64,82.46,247.48]
["RW-61","全面推进《全国大学生思想政治教育质量测评体系（试行）》","思政系","靳媛",0.2,5,4.8,10]
["RW-62","创建平安校园、和谐校园","安保室","毛建平",12.3,220,405,637.3]
["RW-63","落实《高等学校体育工作基本标准》","基础部","吴文海",0,66,12,78]
["RW-64","加强文化素质教育；加强校园文化建设；支持学生社团活动","团委","杜卫庆",6.5,20,47,73.5]
["RW-65","促进职业技能培养与职业精神养成相融合","教务","左红梅",7,45,45,97]
[null,"合计",null,null,{"$f":"SUM(E4:E34)","v":812.56},{"$f":"SUM(F4:F34)","v":1239.52},{"$f":"SUM(G4:G34)","v":1806.64},{"$f":"SUM(H4:H34)","v":3858.72}]

{"sheet":"项目一览表","index":1,"n_rows":16,"n_cols":9,"rows_kept":16,"merged":[[0,0,0,8],[1,0,2,0],[1,1,2,1],[1,2,2,2],[1,3,2,3],[1,4,2,4],[1,5,1,8],[3,0,6,0],[3,1,6,1],[3,3,6,3],[7,0,11,0],[7,1,11,1],[8,3,9,3],[12,0,13,0],[12,1,13,1]]}
["西安电力高等专科学校承担高等职业教育创新发展行动计划（2015-2018年）项目一栏表"]
["编号","项目名称","具体项目","责任部门","责任人","经费（万元）"]
[{"$nulls":5},"2016年","2017年","2018年","合计"]
["XM-1","骨干专业建设","发电厂及电力系统","电力系","刘琪",70,175,155,{"$f":"SUM(F4:H4)","v":400}]
[null,null,"供用电技术",null,"董榕",31,157,212,{"$f":"SUM(F5:H5)","v":400}]
[null,null,"电力系统继电保护与自动化技术",null,"王艳",31,157,212,{"$f":"SUM(F6:H6)","v":400}]
[null,null,"高压输配电线路施工运行与维护",null,"侯梁",54,172,174,{"$f":"SUM(F7:H7)","v":400}]
["XM-2","校企共建的生产性实训基地建设","智能变电站二次系统实训基地","技培部","钟西炎",0,200,200,{"$f":"SUM(F8:H8)","v":400}]
[null,null,"热力设备及辅助系统实训基地","动力系","孙文杰 陈智敏",0,210,190,{"$f":"SUM(F9:H9)","v":400}]
[null,null,"过程控制实训基地",null,"乔红 雷鸣雳",2,234,164,{"$f":"SUM(F10:H10)","v":400}]
[null,null,"电能计量实训基地","灞桥校区","刘珅 钱晓蓉",0.5,198.5,201,{"$f":"SUM(F11:H11)","v":400}]
[null,null,"输配电实训基地","咸阳校区","陈强",1493,362,200,{"$f":"SUM(F12:H12)","v":2055}]
["XM-6","立项建设省级高等职业教育专业教学资源库和精品在线开放课程","电子技术应用","电力系","王锦",6,50,44,{"$f":"SUM(F13:H13)","v":100}]
[null,null,"电厂热力设备与系统","动力系","李珩   孙文杰",5,45,50,{"$f":"SUM(F14:H14)","v":100}]
["XM-18","开发建设一批创新创业教育专门课程（群）","电力专业创新创业教育","管理系","郭怀德",10,5,5,{"$f":"SUM(F15:H15)","v":20}]
[null,"合计",{"$nulls":3},{"$f":"SUM(F4:F15)","v":1702.5},{"$f":"SUM(G4:G15)","v":1965.5},{"$f":"SUM(H4:H15)","v":1807},{"$f":"SUM(I4:I15)","v":5475}]